fUSD/lending_fUSD_20250120
["ID","MTS","AMOUNT","RATE_DAILY","PERIOD"]
[349742956,1737407440395,-500.0,0.00020445,2]
[349742957,1737407440404,-500.0,0.00020445,2]
[349742958,1737407440413,-500.0,0.00020445,2]
[349742959,1737407440422,-500.0,0.00020445,2]
[349742960,1737407440432,-503.14,0.00020445,2]
[349742961,1737407440442,-404.3968059,0.00020445,2]
[349742962,1737407440450,-500.0,0.00020445,2]
[349742963,1737407440460,-500.0,0.00020445,2]
[349742964,1737407440469,-500.0,0.00020445,2]
[349742965,1737407440480,-500.0,0.00020445,2]
[349742966,1737407440490,-500.0,0.00020445,2]
[349742967,1737407440499,-500.0,0.00020445,2]
[349742968,1737407440509,-557.57,0.00020445,2]
[349742969,1737407440518,-500.0,0.00020445,2]
[349742970,1737407440528,-500.0,0.00020445,2]
[349742971,1737407440537,-222.0538,0.00020445,2]
[349742972,1737407440546,-500.0,0.00020445,2]
[349742973,1737407440556,-500.0,0.00020445,2]
[349742974,1737407440565,-500.0,0.00020445,2]
[349742975,1737407440574,-500.0,0.00020445,2]
[349742976,1737407440584,-500.0,0.00020445,2]
[349742977,1737407440593,-500.0,0.00020445,2]
[349742978,1737407440603,-500.0,0.00020445,2]
[349742979,1737407440612,-500.0,0.00020445,2]
[349742980,1737407440622,-500.0,0.00020445,2]
[349742981,1737407440631,-500.0,0.00020445,2]
[349742982,1737407440640,-500.0,0.00020445,2]
[349742983,1737407440650,-500.0,0.00020445,2]
[349742984,1737407440660,-500.0,0.00020445,2]
[349742985,1737407440670,-500.0,0.00020445,2]
[349742986,1737407440679,-712.08,0.00020445,2]
[349742987,1737407440689,-620.12,0.00020445,2]
[349742988,1737407440698,-500.0,0.00020445,2]
[349742989,1737407440708,-500.0,0.00020445,2]
[349742990,1737407440718,-647.46,0.00020445,2]
[349742991,1737407440729,-508.6,0.00020445,2]
[349742992,1737407440738,-535.85,0.00020445,2]
[349742993,1737407440747,-565.33,0.00020445,2]
[349742994,1737407440757,-500.0,0.00020445,2]
[349742995,1737407440767,-882.02,0.00020445,2]
[349742996,1737407440776,-500.0,0.00020445,2]
[349742997,1737407440786,-833.13,0.00020445,2]
[349742998,1737407440796,-500.0,0.00020445,2]
[349742999,1737407440806,-589.68,0.00020445,2]
[349743000,1737407440815,-586.61,0.00020445,2]
[349743001,1737407440825,-500.0,0.00020445,2]
[349743002,1737407440834,-500.0,0.00020445,2]
[349743003,1737407440844,-570.44,0.00020445,2]
[349743004,1737407440853,-1455.45,0.00020445,2]
[349743005,1737407440863,-1274.82,0.00020445,2]
[349743006,1737407440872,-2662.01,0.00020445,2]
[349743007,1737407440882,-1111.74,0.00020445,2]
[349743009,1737407440891,-500.0,0.00020445,2]
[349743010,1737407440901,-224.37230184,0.00020445,2]
[349743011,1737407440911,-1561.89,0.00020445,2]
[349743012,1737407440920,-565.23,0.00020445,2]
[349743013,1737407440929,-500.0,0.00020445,2]
[349743014,1737407440938,-653.52,0.00020445,2]
[349743016,1737407440947,-700.15,0.00020445,2]
[349743018,1737407440957,-500.0,0.00020445,2]
[349743020,1737407440966,-500.0,0.00020445,2]
[349743021,1737407440976,-639.2,0.00020445,2]
[349743022,1737407440986,-895.71,0.00020445,2]
[349743023,1737407440995,-500.0,0.00020445,2]
[349743024,1737407441005,-500.0,0.00020445,2]
[349743025,1737407441015,-1441.83,0.00020445,2]
[349743026,1737407441024,-2905.61,0.00020445,2]
[349743027,1737407441034,-2071.72,0.00020445,2]
[349743028,1737407441043,-390.04774386,0.00020445,2]
[349743029,1737407441052,-500.0,0.00020445,2]
[349743030,1737407441062,-500.0,0.00020445,2]
[349743031,1737407441072,-926.82,0.00020445,2]
[349743032,1737407441081,-500.0,0.00020445,2]
[349743033,1737407441090,-500.0,0.00020445,2]
[349743034,1737407441099,-500.0,0.00020445,2]
[349743035,1737407441108,-757.42,0.00020445,2]
[349743036,1737407441118,-1326.53,0.00020445,2]
[349743037,1737407441129,-500.0,0.00020445,2]
[349743038,1737407441138,-500.0,0.00020445,2]
[349743039,1737407441147,-1124.1,0.00020445,2]
[349743040,1737407441156,-500.0,0.00020445,2]
[349743041,1737407441165,-1071.26,0.00020445,2]
[349743042,1737407441174,-533.17,0.00020445,2]
[349743043,1737407441184,-500.0,0.00020445,2]
[349743044,1737407441193,-500.0,0.00020445,2]
[349743045,1737407441203,-567.16,0.00020445,2]
[349743046,1737407441212,-2251.5,0.00020445,2]
[349743047,1737407441221,-1000.0,0.00020445,2]
[349743048,1737407441231,-890.33,0.00020445,2]
[349743049,1737407441240,-500.0,0.00020445,2]
[349743050,1737407441250,-500.0,0.00020445,2]
[349743051,1737407441259,-500.0,0.00020445,2]
[349743052,1737407441268,-500.0,0.00020445,2]
[349743053,1737407441277,-1074.21,0.00020445,2]
[349743054,1737407441288,-500.0,0.00020445,2]
[349743055,1737407441297,-511.77,0.00020445,2]
[349743056,1737407441309,-1524.25,0.00020445,2]
[349743057,1737407441320,-608.38,0.00020445,2]
[349743058,1737407441330,-712.7,0.00020445,2]
[349743059,1737407441340,-500.0,0.00020445,2]
[349743060,1737407441350,-1770.63,0.00020445,2]
[349743061,1737407441359,-626.48,0.00020445,2]
[349743062,1737407441369,-982.48,0.00020445,2]
[349743063,1737407441379,-500.0,0.00020445,2]
[349743064,1737407441389,-500.0,0.00020445,2]
[349743065,1737407441399,-485.85407769,0.00020463,2]
[349743066,1737407441408,-427.15934284,0.00020465,2]
[349743067,1737407441418,-3172.18213108,0.00020579,2]
[349743068,1737407441427,-485.85407769,0.00020594,2]
[349743069,1737407441437,-628.4956651,0.00020658,2]
[349743070,1737407441446,-427.15934287,0.00020663,2]
[349743071,1737407441455,-2660.40234591,0.00020678,18]
[349743072,1737407441465,-667.78,0.00020718,2]
[349743073,1737407441476,-1277.15,0.00020718,2]
[349743074,1737407441485,-488.200816,0.00020718,2]
[349743075,1737407441494,-500.0,0.00020718,2]
[349743076,1737407441504,-500.0,0.00020718,2]
[349743077,1737407441514,-500.0,0.00020718,2]
[349743078,1737407441524,-500.0,0.00020718,2]
[349743079,1737407441534,-990.56,0.00020718,2]
[349743080,1737407441543,-1476.08,0.00020718,2]
[349743081,1737407441552,-372.560492,0.00020718,2]
[349743082,1737407441562,-876.47,0.00020718,2]
[349743083,1737407441571,-500.0,0.00020718,2]
[349743084,1737407441581,-1321.98,0.00020718,2]
[349743085,1737407441590,-740.71,0.00020718,2]
[349743086,1737407441600,-561.6,0.00020718,2]
[349743087,1737407441610,-2154.89,0.00020718,2]
[349743088,1737407441619,-681.41,0.00020718,2]
[349743089,1737407441628,-500.0,0.00020718,2]
[349743090,1737407441639,-1610.89,0.00020718,2]
[349743091,1737407441648,-500.0,0.00020718,2]
[349743092,1737407441660,-500.0,0.00020718,2]
[349743093,1737407441669,-876.09,0.00020718,2]
[349743094,1737407441679,-917.27,0.00020718,2]
[349743095,1737407441689,-1013.08,0.00020718,2]
[349743096,1737407441698,-1192.37,0.00020718,2]
[349743097,1737407441707,-500.0,0.00020718,2]
[349743098,1737407441716,-588.15,0.00020718,2]
[349743099,1737407441727,-879.6,0.00020718,2]
[349743100,1737407441737,-842.69,0.00020718,2]
[349743101,1737407441746,-1603.43,0.00020718,2]
[349743102,1737407441755,-920.25,0.00020718,2]
[349743103,1737407441765,-1753.14,0.00020718,2]
[349743104,1737407441898,-501.56,0.00020718,2]
[349743105,1737407441908,-1816.42,0.00020718,2]
[349743106,1737407441917,-1197.11,0.00020718,2]
[349743107,1737407441927,-618.65,0.00020718,2]
[349743108,1737407441937,-701.44,0.00020718,2]
[349743109,1737407441946,-533.91,0.00020718,2]
[349743110,1737407441955,-500.0,0.00020718,2]
[349743111,1737407441963,-669.97,0.00020718,2]
[349743112,1737407441973,-2065.12,0.00020718,2]
[349743113,1737407441983,-967.37,0.00020718,2]
[349743114,1737407441992,-1967.82,0.00020718,2]
[349743115,1737407442001,-500.0,0.00020718,2]
[349743116,1737407442011,-500.0,0.00020718,2]
[349743117,1737407442020,-619.90093699,0.00020718,2]
[349743118,1737407442030,-500.0,0.00020718,2]
[349743119,1737407442039,-500.0,0.00020718,2]
[349743120,1737407442049,-2497.3,0.00020718,2]
[349743121,1737407442059,-1204.78,0.00020718,2]
[349743122,1737407442068,-500.0,0.00020719,2]
[349743123,1737407442077,-500.0,0.00020719,2]
[349743124,1737407442086,-500.0,0.00020719,2]
[349743125,1737407442096,-500.0,0.00020719,2]
[349743126,1737407442106,-500.0,0.00020719,2]
[349743127,1737407442116,-500.0,0.00020719,2]
[349743128,1737407442125,-500.0,0.00020719,2]
[349743129,1737407442135,-500.0,0.00020719,2]
[349743130,1737407442144,-500.0,0.00020719,2]
[349743131,1737407442154,-500.0,0.00020719,2]
[349743132,1737407442163,-500.0,0.00020719,2]
[349743133,1737407442173,-500.0,0.00020719,2]
[349743134,1737407442182,-500.0,0.00020719,2]
[349743135,1737407442192,-831.42,0.00020719,2]
[349743136,1737407442202,-242.23058958,0.00020719,2]
[349743137,1737407442211,-380.29287332,0.00020719,2]
[349743138,1737407442221,-500.0,0.00020719,2]
[349743139,1737407442231,-500.0,0.00020719,2]
[349743140,1737407442240,-500.0,0.00020719,2]
[349743141,1737407442249,-598.41,0.00020719,2]
[349743142,1737407442258,-500.0,0.00020719,2]
[349743143,1737407442268,-500.0,0.00020719,2]
[349743144,1737407442277,-500.0,0.00020719,2]
[349743145,1737407442290,-621.52,0.00020719,2]
[349743146,1737407442299,-500.0,0.00020719,2]
[349743147,1737407442309,-500.0,0.00020719,2]
[349743148,1737407442318,-500.0,0.00020719,2]
[349743149,1737407442329,-500.0,0.00020719,2]
[349743150,1737407442338,-500.0,0.00020719,2]
[349743151,1737407442347,-500.0,0.00020719,2]
[349743152,1737407442356,-500.0,0.00020719,2]
[349743153,1737407442367,-500.0,0.00020719,2]
[349743154,1737407442377,-500.0,0.00020719,2]
[349743155,1737407442387,-500.0,0.00020719,2]
[349743156,1737407442397,-500.0,0.00020719,2]
[349743157,1737407442406,-500.0,0.00020719,2]
[349743158,1737407442415,-248.62868434,0.00020719,2]
[349743159,1737407442425,-500.0,0.00020719,2]
[349743160,1737407442435,-500.0,0.00020719,2]
[349743161,1737407442444,-556.4313865,0.00020719,2]
[349743162,1737407442454,-500.0,0.00020719,2]
[349743163,1737407442463,-500.0,0.00020719,2]
[349743164,1737407442472,-500.0,0.00020719,2]
[349743165,1737407442481,-500.0,0.00020719,2]
[349743166,1737407442491,-503.14,0.00020719,2]
[349743167,1737407442501,-500.0,0.00020719,2]
[349743168,1737407442511,-500.0,0.00020719,2]
[349743169,1737407442519,-500.0,0.00020719,2]
[349743170,1737407442529,-500.0,0.00020719,2]
[349743171,1737407442539,-500.0,0.00020719,2]
[349743172,1737407442548,-500.0,0.00020719,2]
[349743173,1737407442558,-557.57,0.00020719,2]
[349743174,1737407442567,-500.0,0.00020719,2]
[349743175,1737407442577,-500.0,0.00020719,2]
[349743176,1737407442586,-500.0,0.00020719,2]
[349743177,1737407442596,-500.0,0.00020719,2]
[349743178,1737407442605,-500.0,0.00020719,2]
[349743179,1737407442615,-500.0,0.00020719,2]
[349743180,1737407442624,-500.0,0.00020719,2]
[349743181,1737407442633,-500.0,0.00020719,2]
[349743182,1737407442643,-500.0,0.00020719,2]
[349743183,1737407442653,-500.0,0.00020719,2]
[349743184,1737407442664,-500.0,0.00020719,2]
[349743185,1737407442673,-500.0,0.00020719,2]
[349743186,1737407442683,-500.0,0.00020719,2]
[349743187,1737407442692,-500.0,0.00020719,2]
[349743188,1737407442702,-500.0,0.00020719,2]
[349743189,1737407442711,-500.0,0.00020719,2]
[349743190,1737407442721,-712.08,0.00020719,2]
[349743191,1737407442731,-620.12,0.00020719,2]
[349743192,1737407442741,-500.0,0.00020719,2]
[349743193,1737407442750,-500.0,0.00020719,2]
[349743194,1737407442760,-647.46,0.00020719,2]
[349743195,1737407442769,-508.6,0.00020719,2]
[349743196,1737407442778,-535.85,0.00020719,2]
[349743197,1737407442788,-565.33,0.00020719,2]
[349743198,1737407442798,-500.0,0.00020719,2]
[349743199,1737407442807,-882.02,0.00020719,2]
[349743200,1737407442817,-500.0,0.00020719,2]
[349743201,1737407442826,-833.13,0.00020719,2]
[349743202,1737407442836,-500.0,0.00020719,2]
[349743203,1737407442845,-589.68,0.00020719,2]
[349743204,1737407442855,-586.61,0.00020719,2]
[349743205,1737407442864,-500.0,0.00020719,2]
[349743206,1737407442873,-500.0,0.00020719,2]
[349743207,1737407442883,-570.44,0.00020719,2]
[349743208,1737407442892,-1455.45,0.00020719,2]
[349743209,1737407442902,-1274.82,0.00020719,2]
[349743210,1737407442912,-2662.01,0.00020719,2]
[349743211,1737407442921,-1111.74,0.00020719,2]
[349743212,1737407442931,-500.0,0.00020719,2]
[349743213,1737407442941,-1561.89,0.00020719,2]
[349743214,1737407442950,-565.23,0.00020719,2]
[349743215,1737407442960,-500.0,0.00020719,2]
[349743216,1737407442970,-653.52,0.00020719,2]
[349743217,1737407442981,-700.15,0.00020719,2]
[349743218,1737407442990,-500.0,0.00020719,2]
[349743219,1737407442999,-500.0,0.00020719,2]
[349743220,1737407443009,-639.2,0.00020719,2]
[349743221,1737407443019,-895.71,0.00020719,2]
[349743222,1737407443028,-500.0,0.00020719,2]
[349743223,1737407443038,-222.05611287,0.00020719,2]
[349743224,1737407443047,-1441.83,0.00020719,2]
[349743225,1737407443057,-2905.61,0.00020719,2]
[349743226,1737407443069,-2071.72,0.00020719,2]
[349743227,1737407443085,-500.0,0.00020719,2]
[349743228,1737407443099,-500.0,0.00020719,2]
[349743229,1737407443111,-926.82,0.00020719,2]
[349743230,1737407443125,-500.0,0.00020719,2]
[349743232,1737407443139,-500.0,0.00020719,2]
[349743234,1737407443152,-500.0,0.00020719,2]
[349743235,1737407443167,-757.42,0.00020719,2]
[349743236,1737407443182,-1326.53,0.00020719,2]
[349743237,1737407443194,-500.0,0.00020719,2]
[349743239,1737407443205,-500.0,0.00020719,2]
[349743240,1737407443218,-1124.1,0.00020719,2]
[349743241,1737407443232,-500.0,0.00020719,2]
[349743242,1737407443245,-1071.26,0.00020719,2]
[349743243,1737407443259,-533.17,0.00020719,2]
[349743244,1737407443273,-500.0,0.00020719,2]
[349743245,1737407443287,-500.0,0.00020719,2]
[349743246,1737407443300,-567.16,0.00020719,2]
[349743247,1737407443318,-2251.5,0.00020719,2]
[349743248,1737407443332,-1000.0,0.00020719,2]
[349743249,1737407443344,-890.33,0.00020719,2]
[349743250,1737407443358,-500.0,0.00020719,2]
[349743251,1737407443371,-500.0,0.00020719,2]
[349743252,1737407443387,-500.0,0.00020719,2]
[349743253,1737407443399,-500.0,0.00020719,2]
[349743254,1737407443411,-1074.21,0.00020719,2]
[349743255,1737407443421,-500.0,0.00020719,2]
[349743256,1737407443432,-511.77,0.00020719,2]
[349743257,1737407443444,-1524.25,0.00020719,2]
[349743258,1737407443459,-712.7,0.00020719,2]
[349743259,1737407443470,-500.0,0.00020719,2]
[349743260,1737407443481,-1770.63,0.00020719,2]
[349743261,1737407443493,-369.84930889,0.00020719,2]
[349743262,1737407443507,-626.48,0.00020719,2]
[349743263,1737407443520,-982.48,0.00020719,2]
[349743264,1737407443530,-500.0,0.00020719,2]
[349743265,1737407443541,-500.0,0.00020719,2]
[349743266,1737407443554,-485.85407769,0.00020724,2]
[349743267,1737407443566,-150.0,0.00020767,2]
[349743268,1737407443578,-150.0,0.00020772,2]
[349743269,1737407443589,-201.0,0.0002078,4]
[349743270,1737407443602,-150.0,0.00020783,2]
[349743271,1737407443614,-150.0,0.00020792,2]
[349743272,1737407443627,-150.0,0.00020801,2]
[349743273,1737407443639,-1000.0,0.00020802,2]
[349743274,1737407443650,-150.0,0.00020807,2]
[349743275,1737407443662,-150.0,0.00020809,2]
[349743276,1737407443675,-150.0,0.00020814,2]
[349743277,1737407443687,-28412.39839921,0.00020817,2]
[349743278,1737407443698,-150.0,0.00020818,2]
[349743281,1737407443711,-500.0,0.00020819,2]
[349743283,1737407443723,-150.0,0.00020827,2]
[349743285,1737407443735,-150.0,0.00020832,2]
[349743286,1737407443747,-150.0,0.00020834,2]
[349743287,1737407443759,-3172.18213108,0.00020844,2]
[349743288,1737407443772,-150.0,0.00020844,2]
[349743289,1737407443784,-485.85407769,0.00020855,2]
[349743290,1737407443797,-150.0,0.00020859,2]
[349743291,1737407443809,-6206.87295585,0.0002087,2]
[349743292,1737407443822,-500.0,0.00020872,2]
[349743293,1737407443833,-150.0,0.00020882,2]
[349743294,1737407443845,-150.0,0.00020888,2]
[349743295,1737407443857,-150.0,0.00020889,2]
[349743296,1737407443868,-150.0,0.00020893,2]
[349743297,1737407443883,-207.92,0.00020895,2]
[349743298,1737407443895,-150.0,0.00020896,2]
[349743299,1737407443907,-1000.0,0.00020899,2]
[349743300,1737407443920,-42801.84351624,0.000209,2]
[349743301,1737407443931,-225.7003993,0.000209,2]
[349743302,1737407443943,-150.0,0.00020908,2]
[349743303,1737407443954,-197.50747047,0.00020914,2]
[349743304,1737407443966,-151.24758829,0.0002092,2]
[349743305,1737407443979,-152.0,0.00020921,3]
[349743306,1737407443991,-1000.0,0.00020921,2]
[349743307,1737407444003,-150.0,0.00020924,2]
[349743308,1737407444015,-150.0,0.00020928,2]
[349743309,1737407444027,-150.0,0.0002094,2]
[349743310,1737407444040,-150.0,0.00020944,2]
[349743311,1737407444052,-150.0,0.00020945,2]
[349743312,1737407444063,-150.0,0.0002095,2]
[349743313,1737407444075,-150.0,0.00020955,2]
[349743314,1737407444087,-500.0,0.00020956,2]
[349743315,1737407444099,-150.0,0.00020958,2]
[349743316,1737407444111,-150.0,0.00020973,2]
[349743317,1737407444123,-150.0,0.00020974,2]
[349743318,1737407444134,-7256.0872,0.0002098,2]
[349743319,1737407444147,-165.83760737,0.0002098,2]
[349743320,1737407444158,-150.0,0.00020981,2]
[349743321,1737407444169,-485.85407769,0.00020986,2]
[349743322,1737407444181,-150.0,0.00020986,2]
[349743323,1737407444194,-667.78,0.00020992,2]
[349743324,1737407444205,-1277.15,0.00020992,2]
[349743325,1737407444217,-488.200816,0.00020992,2]
[349743326,1737407444230,-500.0,0.00020992,2]
[349743327,1737407444243,-500.0,0.00020992,2]
[349743328,1737407444254,-500.0,0.00020992,2]
[349743329,1737407444267,-500.0,0.00020992,2]
[349743330,1737407444279,-990.56,0.00020992,2]
[349743331,1737407444296,-1476.08,0.00020992,2]
[349743332,1737407444308,-372.560492,0.00020992,2]
[349743333,1737407444320,-876.47,0.00020992,2]
[349743334,1737407444335,-500.0,0.00020992,2]
[349743335,1737407444347,-740.71,0.00020992,2]
[349743336,1737407444358,-1321.98,0.00020992,2]
[349743337,1737407444372,-561.6,0.00020992,2]
[349743338,1737407444384,-2154.89,0.00020992,2]
[349743339,1737407444396,-681.41,0.00020992,2]
[349743340,1737407444408,-500.0,0.00020992,2]
[349743341,1737407444421,-1610.89,0.00020992,2]
[349743342,1737407444433,-500.0,0.00020992,2]
[349743343,1737407444445,-500.0,0.00020992,2]
[349743344,1737407444457,-876.09,0.00020992,2]
[349743345,1737407444469,-917.27,0.00020992,2]
[349743346,1737407444482,-1013.08,0.00020992,2]
[349743347,1737407444494,-1192.37,0.00020992,2]
[349743348,1737407444504,-500.0,0.00020992,2]
[349743349,1737407444514,-588.15,0.00020992,2]
[349743350,1737407444523,-879.6,0.00020992,2]
[349743351,1737407444684,-842.69,0.00020992,2]
[349743352,1737407444759,-1603.43,0.00020992,2]
[349743353,1737407444771,-920.25,0.00020992,2]
[349743354,1737407444780,-1753.14,0.00020992,2]
[349743355,1737407444790,-501.56,0.00020992,2]
[349743356,1737407444799,-1816.42,0.00020992,2]
[349743357,1737407444809,-1197.11,0.00020992,2]
[349743358,1737407444818,-618.65,0.00020992,2]
[349743359,1737407444827,-701.44,0.00020992,2]
[349743360,1737407444837,-533.91,0.00020992,2]
[349743361,1737407444846,-500.0,0.00020992,2]
[349743362,1737407444856,-669.97,0.00020992,2]
[349743363,1737407444865,-2065.12,0.00020992,2]
[349743364,1737407444874,-967.37,0.00020992,2]
[349743365,1737407444884,-1967.82,0.00020992,2]
[349743366,1737407444894,-500.0,0.00020992,2]
[349743367,1737407444903,-500.0,0.00020992,2]
[349743368,1737407444913,-500.0,0.00020992,2]
[349743369,1737407444922,-500.0,0.00020992,2]
[349743370,1737407444931,-2497.3,0.00020992,2]
[349743371,1737407444940,-1204.78,0.00020992,2]
[349743372,1737407444950,-500.0,0.00020993,2]
[349743373,1737407444960,-500.0,0.00020993,2]
[349743374,1737407444970,-500.0,0.00020993,2]
[349743375,1737407444980,-500.0,0.00020993,2]
[349743376,1737407444990,-500.0,0.00020993,2]
[349743377,1737407444999,-500.0,0.00020993,2]
[349743378,1737407445009,-500.0,0.00020993,2]
[349743379,1737407445018,-500.0,0.00020993,2]
[349743380,1737407445028,-500.0,0.00020993,2]
[349743381,1737407445037,-354.65,0.00020993,2]
[349743382,1737407445047,-500.0,0.00020993,2]
[349743383,1737407445056,-500.0,0.00020993,2]
[349743384,1737407445066,-500.0,0.00020993,2]
[349743385,1737407445075,-831.42,0.00020993,2]
[349743386,1737407445084,-500.0,0.00020993,2]
[349743387,1737407445094,-500.0,0.00020993,2]
[349743388,1737407445104,-500.0,0.00020993,2]
[349743389,1737407445113,-598.41,0.00020993,2]
[349743390,1737407445123,-500.0,0.00020993,2]
[349743391,1737407445132,-500.0,0.00020993,2]
[349743392,1737407445141,-500.0,0.00020993,2]
[349743393,1737407445151,-621.52,0.00020993,2]
[349743394,1737407445160,-500.0,0.00020993,2]
[349743395,1737407445170,-500.0,0.00020993,2]
[349743396,1737407445179,-500.0,0.00020993,2]
[349743397,1737407445188,-500.0,0.00020993,2]
[349743398,1737407445198,-500.0,0.00020993,2]
[349743399,1737407445207,-500.0,0.00020993,2]
[349743400,1737407445216,-500.0,0.00020993,2]
[349743401,1737407445227,-500.0,0.00020993,2]
[349743402,1737407445236,-500.0,0.00020993,2]
[349743403,1737407445245,-500.0,0.00020993,2]
[349743404,1737407445254,-500.0,0.00020993,2]
[349743405,1737407445264,-500.0,0.00020993,2]
[349743406,1737407445273,-500.0,0.00020993,2]
[349743407,1737407445282,-500.0,0.00020993,2]
[349743408,1737407445292,-590.01069788,0.00020993,2]
[349743409,1737407445302,-500.0,0.00020993,2]
[349743410,1737407445315,-500.0,0.00020993,2]
[349743411,1737407445324,-420.99959164,0.00020993,2]
[349743412,1737407445333,-503.14,0.00020993,2]
[349743413,1737407445342,-500.0,0.00020993,2]
[349743414,1737407445352,-500.0,0.00020993,2]
[349743415,1737407445362,-500.0,0.00020993,2]
[349743416,1737407445371,-500.0,0.00020993,2]
[349743417,1737407445380,-500.0,0.00020993,2]
[349743418,1737407445391,-500.0,0.00020993,2]
[349743419,1737407445402,-557.57,0.00020993,2]
[349743420,1737407445411,-500.0,0.00020993,2]
[349743421,1737407445420,-500.0,0.00020993,2]
[349743422,1737407445430,-500.0,0.00020993,2]
[349743423,1737407445439,-500.0,0.00020993,2]
[349743424,1737407445448,-500.0,0.00020993,2]
[349743425,1737407445458,-500.0,0.00020993,2]
[349743426,1737407445467,-500.0,0.00020993,2]
[349743427,1737407445477,-500.0,0.00020993,2]
[349743428,1737407445486,-500.0,0.00020993,2]
[349743429,1737407445495,-500.0,0.00020993,2]
[349743430,1737407445505,-500.0,0.00020993,2]
[349743431,1737407445514,-500.0,0.00020993,2]
[349743432,1737407445523,-500.0,0.00020993,2]
[349743433,1737407445533,-500.0,0.00020993,2]
[349743434,1737407445542,-500.0,0.00020993,2]
[349743435,1737407445551,-486.15281169,0.00020993,2]
[349743436,1737407445560,-712.08,0.00020993,2]
[349743437,1737407445569,-620.12,0.00020993,2]
[349743438,1737407445578,-500.0,0.00020993,2]
[349743439,1737407445589,-500.0,0.00020993,2]
[349743440,1737407445598,-647.46,0.00020993,2]
[349743441,1737407445607,-508.6,0.00020993,2]
[349743442,1737407445616,-535.85,0.00020993,2]
[349743443,1737407445626,-565.33,0.00020993,2]
[349743444,1737407445635,-500.0,0.00020993,2]
[349743445,1737407445644,-882.02,0.00020993,2]
[349743446,1737407445654,-500.0,0.00020993,2]
[349743447,1737407445663,-833.13,0.00020993,2]
[349743448,1737407445673,-500.0,0.00020993,2]
[349743449,1737407445682,-589.68,0.00020993,2]
[349743450,1737407445692,-586.61,0.00020993,2]
[349743451,1737407445701,-500.0,0.00020993,2]
[349743452,1737407445711,-500.0,0.00020993,2]
[349743453,1737407445721,-570.44,0.00020993,2]
[349743454,1737407445730,-1455.45,0.00020993,2]
[349743455,1737407445740,-1274.82,0.00020993,2]
[349743456,1737407445749,-2662.01,0.00020993,2]
[349743457,1737407445759,-1111.74,0.00020993,2]
[349743458,1737407445768,-500.0,0.00020993,2]
[349743459,1737407445777,-1561.89,0.00020993,2]
[349743460,1737407445787,-565.23,0.00020993,2]
[349743461,1737407445796,-500.0,0.00020993,2]
[349743462,1737407445806,-653.52,0.00020993,2]
[349743463,1737407445815,-700.15,0.00020993,2]
[349743464,1737407445824,-500.0,0.00020993,2]
[349743465,1737407445833,-500.0,0.00020993,2]
[349743466,1737407445843,-639.2,0.00020993,2]